bitfinex/quotes_BTCUSD_20251124
["timestamp","ask_amount","ask_price","bid_price","bid_amount"]
[1763950230004,0.00155082,87927.0,87923.0,0.01]
[1763950230194,0.00011796,87931.0,87924.0,0.011916]
[1763950230471,0.00011796,87931.0,87926.0,0.06187]
[1763950230672,0.00011796,87931.0,87926.0,0.16103]
[1763950230878,0.00011796,87931.0,87930.0,0.07187]
[1763950231110,0.0002,87940.0,87930.0,0.19932459]
[1763950231318,0.00059295,87940.0,87939.0,0.12089]
[1763950231520,0.00059295,87940.0,87939.0,0.04902]
[1763950231925,0.00059295,87940.0,87932.0,0.04902]
[1763950233954,0.00059295,87940.0,87932.0,0.05902]
[1763950234173,0.00059295,87940.0,87933.0,0.015589]
[1763950235408,0.00059295,87940.0,87933.0,0.025589]
[1763950235815,0.00059295,87940.0,87933.0,0.015589]
[1763950235816,0.00176779,87934.0,87933.0,0.015589]
[1763950236224,0.00176779,87934.0,87933.0,0.088159]
[1763950236439,0.00176779,87934.0,87932.0,0.04902]
[1763950236631,0.00059295,87940.0,87932.0,0.04902]
[1763950236831,0.323,87949.0,87932.0,0.04902]
[1763950237037,0.323,87944.0,87932.0,0.04902]
[1763950237752,0.0298,87951.0,87920.0,0.00999999]
[1763950237753,0.05644,87933.0,87920.0,0.00999999]
[1763950237881,0.323,87929.0,87920.0,0.00039295]
[1763950238084,0.02705,87921.0,87920.0,0.00039295]
[1763950238304,0.68545188,87960.0,87930.0,0.00999999]
[1763950238511,0.336864,87961.0,87931.0,0.063887]
[1763950238512,0.323,87947.0,87931.0,0.063887]
[1763950238937,0.323,87947.0,87931.0,0.053887]
[1763950239142,0.323,87947.0,87932.0,0.08687]
[1763950239411,0.013864,87961.0,87932.0,0.08687]
[1763950239542,0.013864,87961.0,87940.0,0.00999999]
[1763950239752,0.68545188,87960.0,87940.0,0.00999999]
[1763950240156,0.323,87959.0,87940.0,0.00999999]
[1763950240369,0.323,87959.0,87950.0,0.04563]
[1763950240579,2.0,87958.0,87950.0,0.04563]
[1763950240969,2.0,87958.0,87948.0,0.04563]
[1763950241178,2.0,87958.0,87944.0,0.04563]
[1763950241420,0.0298,87941.0,87933.0,0.0160757]
[1763950241636,0.01136983,87952.0,87933.0,0.01]
[1763950242193,0.55039675,87953.0,87933.0,0.09687]
[1763950242194,0.323,87953.0,87933.0,0.09687]
[1763950242795,0.00176779,87934.0,87933.0,0.09687]
[1763950243172,0.00176779,87934.0,87933.0,0.15944]
[1763950243372,0.00176779,87934.0,87933.0,0.181679]
[1763950245530,0.00176779,87934.0,87933.0,0.581679]
[1763950245752,0.00011782,87958.0,87957.0,0.01]
[1763950246034,0.00011782,87958.0,87957.0,0.11785]
[1763950246231,0.00086172,87958.0,87957.0,0.20614]
[1763950246505,0.00086172,87958.0,87957.0,0.2216162]
[1763950247795,0.00086172,87958.0,87957.0,0.23068636]
[1763950247997,0.0002,87980.0,87967.0,0.01136789]
[1763950248140,0.0002,87980.0,87969.0,0.11785]
[1763950248586,0.0002,87980.0,87969.0,0.20614]
[1763950248764,0.0002,87980.0,87969.0,0.228379]
[1763950249642,0.0002,87980.0,87969.0,0.628379]
[1763950250062,0.0002,87980.0,87969.0,0.635699]
[1763950251699,0.0002,87980.0,87969.0,0.11785]
[1763950251864,0.0002,87980.0,87969.0,0.10785]
[1763950252063,0.0002,87980.0,87969.0,0.19614]
[1763950252269,0.0002,87980.0,87969.0,0.20614]
[1763950253641,0.00057185,87970.0,87969.0,0.20614]
[1763950253800,0.00057185,87970.0,87969.0,0.227486]
[1763950254616,0.00057185,87970.0,87969.0,0.05722]
[1763950254839,0.00057185,87970.0,87969.0,0.04722]
[1763950255083,0.00057185,87970.0,87960.0,0.00999999]
[1763950255287,0.0002,87980.0,87970.0,0.00999999]
[1763950255515,0.0002,87980.0,87979.0,0.06063]
[1763950255718,0.0002,87980.0,87979.0,0.169705]
[1763950257635,0.0002,87980.0,87979.0,0.06063]
[1763950257837,0.0002,87980.0,87972.0,0.04722]
[1763950258064,0.0002,87980.0,87970.0,0.00999999]
[1763950258397,0.01136634,87979.0,87970.0,0.00999999]
[1763950258627,0.33436634,87979.0,87970.0,0.00999999]
[1763950258949,0.05309,87971.0,87970.0,0.00999999]
[1763950259502,0.22732174,87982.0,87970.0,0.00999999]
[1763950259503,18.41083527,88000.0,87990.0,0.00999999]
[1763950259710,18.41095307,88000.0,87998.0,0.01]
[1763950259909,18.41095307,88000.0,87999.0,0.06063]
[1763950260115,18.41095307,88000.0,87999.0,0.15892]
[1763950260608,18.41095307,88000.0,87991.0,0.4]
[1763950260809,18.41095307,88000.0,87999.0,0.15892]
[1763950264794,18.41095307,88000.0,87999.0,0.16624]
[1763950265130,18.41225409,88000.0,87999.0,0.16624]
[1763950266794,18.41225409,88000.0,87990.0,0.00999999]
[1763950266999,18.87751166,88000.0,87990.0,0.00999999]
[1763950267200,0.04907,87991.0,87980.0,0.00999999]
[1763950267418,0.46655859,87990.0,87980.0,0.00999999]
[1763950267841,0.323,87989.0,87980.0,0.00999999]
[1763950268065,0.33436505,87989.0,87980.0,0.00999999]
[1763950268257,0.323,87989.0,87980.0,0.00999999]
[1763950268697,0.323,87999.0,87990.0,0.00999999]
[1763950268869,18.41095307,88000.0,87990.0,0.00999999]
[1763950270498,18.41095307,88000.0,87991.0,0.02272959]
[1763950270705,18.41095307,88000.0,87999.0,0.05598]
[1763950270906,18.41095307,88000.0,87999.0,0.01]
[1763950271114,18.41095307,88000.0,87999.0,0.15591]
[1763950271918,18.41095307,88000.0,87999.0,0.06598]
[1763950272125,18.41095307,88000.0,87990.0,0.00999999]
[1763950272320,0.00102234,87991.0,87990.0,0.01999999]
[1763950272523,0.00102234,87991.0,87969.0,0.05858764]
[1763950272524,0.00102234,87991.0,87981.0,0.08993]
[1763950272797,18.87751166,88000.0,87969.0,0.04722]
[1763950272798,18.87751166,88000.0,87990.0,0.00999999]
[1763950273005,18.41095307,88000.0,87990.0,0.00999999]
[1763950273210,18.41095307,88000.0,87999.0,0.05598]
[1763950273417,18.41095307,88000.0,87999.0,0.06598]
[1763950273621,18.41095307,88000.0,87999.0,0.16478093]
[1763950275385,18.41095307,88000.0,87999.0,0.15591]
[1763950276701,18.41095307,88000.0,87999.0,0.06598]
[1763950276907,18.41095307,88000.0,87999.0,0.15591]
[1763950281031,18.41095307,88000.0,87999.0,0.06598]
[1763950281230,18.41225409,88000.0,87999.0,0.15591]
[1763950281833,18.41225409,88000.0,87990.0,0.00999999]
[1763950282033,18.41095307,88000.0,87989.0,0.0547]
[1763950282434,18.41095307,88000.0,87990.0,0.00999999]
[1763950283787,18.87751166,88000.0,87990.0,0.00999999]
[1763950284143,18.87751166,88000.0,87976.0,0.00732]
[1763950284144,0.01136389,87998.0,87976.0,0.00732]
[1763950284376,0.01136415,87996.0,87980.0,0.00999999]
[1763950284589,0.0298,87977.0,87970.0,0.00999999]
[1763950284813,0.0298,87977.0,87957.0,0.04722]
[1763950285013,0.0298,87977.0,87958.0,0.014447]
[1763950285301,0.0298,87977.0,87970.0,0.00999999]
[1763950285302,0.01136686,87975.0,87970.0,0.00999999]
[1763950285681,0.04907,87971.0,87970.0,0.00999999]
[1763950286263,0.323,87976.0,87970.0,0.00999999]
[1763950286424,0.0298,87977.0,87970.0,0.00999999]
[1763950286634,0.01575,87971.0,87970.0,0.00999999]
[1763950286902,0.01136764,87969.0,87960.0,0.00999999]
[1763950287119,0.46655859,87970.0,87960.0,0.00999999]
[1763950287330,0.323,87971.0,87960.0,0.00999999]
[1763950287533,0.01136777,87968.0,87960.0,0.00999999]
[1763950287766,0.04907,87961.0,87960.0,0.00999999]
[1763950288111,0.01575,87969.0,87960.0,0.00999999]
[1763950288311,0.46655859,87970.0,87960.0,0.00999999]
[1763950288484,0.323,87975.0,87960.0,0.00999999]
[1763950288721,0.323,87973.0,87960.0,0.00999999]
[1763950288929,0.323,87973.0,87936.0,0.00732]
[1763950288930,0.01575,87961.0,87940.0,0.0447]
[1763950289137,0.46655859,87950.0,87940.0,0.01011781]
[1763950289575,0.323,87955.0,87950.0,0.00999999]
[1763950289782,0.04907,87973.0,87950.0,0.00999999]
[1763950289960,0.323,87969.0,87950.0,0.00999999]
[1763950290710,0.323,87969.0,87950.0,0.09992999]
[1763950290919,0.10308747,87979.0,87951.0,0.014463]
[1763950290920,0.03866,87976.0,87951.0,0.014463]
[1763950291112,0.323,87972.0,87950.0,0.00999999]
[1763950291678,0.323,87972.0,87960.0,0.00999999]
[1763950292283,0.323,87975.0,87963.0,0.01]
[1763950292503,2.0,87976.0,87963.0,0.01]
[1763950292729,2.0,87976.0,87964.0,0.010993]
[1763950292936,0.00024791,87966.0,87964.0,0.010993]
[1763950293493,0.00024791,87966.0,87964.0,0.08993]
[1763950293650,0.00024791,87966.0,87960.0,0.00999999]
[1763950293858,0.00024791,87966.0,87960.0,0.01999999]
[1763950294533,0.00024791,87966.0,87965.0,0.05807]
[1763950294741,0.00024791,87966.0,87960.0,0.00999999]
[1763950295082,0.00024791,87966.0,87961.0,0.009158]
[1763950295276,0.00024791,87966.0,87965.0,0.05807]
[1763950295815,0.00024791,87966.0,87961.0,0.009158]
[1763950296032,0.00024791,87966.0,87960.0,0.00999999]
[1763950296235,0.00024791,87966.0,87965.0,0.05807]
[1763950296629,0.00024791,87966.0,87960.0,0.00999999]
[1763950296969,0.00024791,87966.0,87961.0,0.01]
[1763950297186,0.00024791,87966.0,87960.0,0.00999999]
[1763950297379,0.00024791,87966.0,87960.0,0.01915799]
[1763950298477,0.00024791,87966.0,87960.0,0.00999999]
[1763950301129,0.00024791,87966.0,87965.0,0.05807]
[1763950301552,0.00024791,87966.0,87965.0,0.14965]
[1763950302092,0.00024791,87966.0,87960.0,0.00999999]
[1763950304586,0.00024791,87966.0,87965.0,0.0552]
[1763950304791,0.00024791,87966.0,87965.0,0.069542]
[1763950305120,0.00024791,87966.0,87965.0,0.147762]
[1763950306500,0.00024791,87966.0,87965.0,0.069542]
[1763950306704,0.00024791,87966.0,87965.0,0.157762]
[1763950309350,0.00024791,87966.0,87965.0,0.14342]
[1763950309955,0.00024791,87966.0,87960.0,0.01999999]
[1763950310562,0.00024791,87966.0,87965.0,0.0552]
[1763950312071,0.00024791,87966.0,87960.0,0.00999999]
[1763950312698,0.00024791,87966.0,87961.0,0.04031]
[1763950314216,0.00024791,87966.0,87965.0,0.0552]
[1763950314582,0.00024791,87966.0,87965.0,0.0652]
[1763950314811,0.00024791,87966.0,87961.0,0.046073]
[1763950315575,0.00024791,87966.0,87965.0,0.0552]
[1763950315773,0.00024791,87966.0,87965.0,0.13342]
[1763950315983,0.00024791,87966.0,87965.0,0.1523693]
[1763950316793,0.00024791,87966.0,87965.0,0.1623693]
[1763950318092,0.00024791,87966.0,87965.0,0.14342]
[1763950318983,0.00024791,87966.0,87965.0,0.15544416]
[1763950319417,0.00024791,87966.0,87965.0,0.14342]
[1763950319674,0.00024791,87966.0,87965.0,0.16378566]
[1763950320123,0.00024791,87966.0,87965.0,0.14342]
[1763950320351,18.41083527,88000.0,87990.0,0.00999999]
[1763950320578,18.41083527,88000.0,87999.0,0.09551]
[1763950320826,18.41083527,88000.0,87999.0,0.18373]
[1763950321034,18.41083527,88000.0,87999.0,0.19929382]
[1763950321035,18.32566527,88000.0,87999.0,0.19929382]
[1763950321384,17.12462527,88000.0,87999.0,2.60661382]
[1763950321595,17.12474309,88000.0,87999.0,2.60661382]
[1763950321798,17.106373,88000.0,87999.0,2.69413747]
[1763950322328,16.85795482,88000.0,87999.0,2.69413747]
[1763950322757,16.85795482,88000.0,87999.0,0.69413747]
[1763950323104,16.85795482,88000.0,87999.0,2.69413747]
[1763950323429,16.85795482,88000.0,87999.0,2.70320763]
[1763950323631,16.85795482,88000.0,87999.0,2.92141277]
[1763950324218,16.85795482,88000.0,87999.0,0.69413747]
[1763950324624,16.85795482,88000.0,87999.0,0.61591747]
[1763950325037,16.85795482,88000.0,87999.0,0.50551]
[1763950325234,16.85795482,88000.0,87999.0,0.01]
[1763950325433,16.85795482,88000.0,87995.0,0.00732]
[1763950325638,16.85795482,88000.0,87999.0,0.01]
[1763950326064,16.85795482,88000.0,87995.0,0.00732]
[1763950326266,16.85795482,88000.0,87990.0,0.00999999]
[1763950326893,0.07895,87999.0,87979.0,0.00732]
[1763950327095,0.07895,87999.0,87990.0,0.00999999]
[1763950327717,0.05272,87991.0,87980.0,0.00999999]
[1763950328137,0.03891,87981.0,87976.0,0.04031]
[1763950328483,0.03891,87981.0,87970.0,0.00999999]
[1763950329112,0.07895,87980.0,87970.0,0.00999999]
[1763950329311,0.07895,87980.0,87964.0,0.00732]
[1763950329312,0.05272,87971.0,87964.0,0.00732]
[1763950329511,0.03891,87965.0,87964.0,0.00732]
[1763950329738,0.07895,87980.0,87960.0,0.00999999]
[1763950329739,0.03891,87973.0,87960.0,0.01999999]
[1763950329947,0.07895,87980.0,87962.0,0.006031]
[1763950331236,0.03891,87981.0,87962.0,0.006031]
[1763950331435,0.03891,87981.0,87971.0,0.01]
[1763950331644,0.00077446,87991.0,87980.0,0.00999999]
[1763950331844,0.00011782,87991.0,87983.0,0.01]
[1763950332058,0.00011782,87991.0,87980.0,0.00999999]
[1763950332698,0.03891,87981.0,87980.0,0.00999999]
[1763950333030,0.03891,87981.0,87964.0,0.00732]
[1763950333031,0.03891,87981.0,87970.0,0.01999999]
[1763950333245,0.00011782,87991.0,87980.0,0.04532999]
[1763950333424,0.00011782,87991.0,87990.0,0.04533]
[1763950333865,0.00011782,87991.0,87990.0,0.08066]
[1763950334775,16.67275292,88000.0,87999.0,0.04533]
[1763950334947,16.67275292,88000.0,87999.0,0.05265]
[1763950335088,16.67275292,88000.0,87999.0,0.08798]
[1763950335294,16.67275292,88000.0,87999.0,0.48798]
[1763950335732,16.46534484,88000.0,87999.0,0.48798]
[1763950337546,16.46534484,88000.0,87999.0,0.08798]
[1763950337874,16.466398,88000.0,87999.0,0.08798]
[1763950338978,16.466398,88000.0,87999.0,0.08794]
[1763950340010,16.466398,88000.0,87999.0,0.05261]
[1763950341180,16.466398,88000.0,87999.0,0.08803]
[1763950341471,16.466398,88000.0,87999.0,0.05261]
[1763950342065,16.37663289,88000.0,87999.0,0.08803]
[1763950342239,16.37627289,88000.0,87999.0,2.3153053]
[1763950342444,16.37627289,88000.0,87999.0,2.32437546]
[1763950343021,16.37627289,88000.0,87999.0,2.3153053]
[1763950343428,16.37627289,88000.0,87999.0,2.32437546]
[1763950345372,16.37627289,88000.0,87999.0,1.26303683]
[1763950345373,12.23279349,88000.0,87999.0,1.26303683]
[1763950345571,9.84104524,88000.0,87999.0,1.42025074]
[1763950345784,7.83571029,88000.0,87999.0,1.38047811]
[1763950345992,5.53599002,88000.0,87999.0,1.33960189]
[1763950346152,3.14697463,88000.0,87999.0,1.24944929]
[1763950346355,0.82864832,88000.0,87999.0,1.36934929]
[1763950346565,0.0002,88070.0,88067.0,0.01135499]
[1763950346770,0.00059281,88070.0,88069.0,0.23709466]
[1763950347125,0.00059281,88070.0,88069.0,0.01728]
[1763950347355,0.00059281,88070.0,88069.0,2.41728]
[1763950347563,0.00059281,88070.0,88069.0,2.42635016]
[1763950348219,1e-08,88070.0,88069.0,2.42635016]
[1763950348429,1e-08,88070.0,88069.0,2.41907016]
[1763950348642,1e-08,88070.0,88069.0,2.42635016]
[1763950350871,1e-08,88070.0,88069.0,2.41907016]
[1763950351076,1e-08,88070.0,88069.0,0.41]
[1763950351316,1e-08,88070.0,88069.0,0.41728]
[1763950352073,0.03891,88103.0,88090.0,0.01]
[1763950352310,0.03902788,88103.0,88090.0,0.01999999]
[1763950352513,0.0028153,88091.0,88090.0,0.01]
[1763950353272,0.0028153,88091.0,88090.0,0.1377]
[1763950353697,0.0028153,88091.0,88090.0,0.01]
[1763950353902,0.0028153,88091.0,88089.0,0.03929]
[1763950354142,0.00011788,88103.0,88089.0,0.03929]
[1763950354345,0.00278439,88090.0,88089.0,0.03929]
[1763950354563,0.00278439,88090.0,88089.0,0.14885]
[1763950354767,0.00278439,88090.0,88089.0,0.04929]
[1763950355771,0.00278439,88090.0,88088.0,0.01]
[1763950356096,0.00011788,88103.0,88088.0,0.01]
[1763950356561,0.6840721,88100.0,88090.0,0.00999999]
[1763950356790,0.6840721,88100.0,88082.0,0.03929]
[1763950356791,0.6840721,88100.0,88082.0,0.01]
[1763950356985,0.6840721,88100.0,88068.0,0.03929]
[1763950356986,0.6840721,88092.0,88068.0,0.03929]
[1763950357198,0.42029,88099.0,88080.0,0.00999999]
[1763950358256,0.6840721,88090.0,88080.0,0.00999999]
[1763950361291,0.00275349,88089.0,88080.0,0.00999999]
[1763950361493,0.6840721,88090.0,88080.0,0.00999999]
[1763950361647,0.7813621,88090.0,88080.0,0.00999999]
[1763950362640,0.04776,88081.0,88080.0,0.00999999]
[1763950363051,0.04776,88081.0,88047.0,0.22715076]
[1763950363052,0.323,88080.0,88060.0,0.00999999]
[1763950363265,0.00822,88069.0,88060.0,0.00999999]
[1763950363440,0.04401,88061.0,88052.0,0.01]
[1763950363640,0.04401,88061.0,88050.0,0.00999999]
[1763950364044,0.6840721,88060.0,88044.0,0.03929]
[1763950364249,0.6840721,88060.0,88050.0,0.00999999]
[1763950364450,0.09927,88059.0,88050.0,0.00999999]
[1763950365612,0.0539,88051.0,88010.0,0.00999999]
[1763950365806,0.0539,88051.0,87990.0,0.04414477]
[1763950365807,0.09358,88033.0,88003.0,0.09657]
[1763950366037,0.09358,88033.0,88010.0,0.01]
[1763950366038,0.46553934,88020.0,88010.0,0.01]
[1763950366603,0.46553934,88030.0,88010.0,0.01]
[1763950367038,0.46565706,88030.0,88010.0,0.01]
[1763950367232,0.46553934,88020.0,88010.0,0.01]
[1763950367833,0.04652,88019.0,88010.0,0.01]
[1763950368039,0.46553934,88020.0,88010.0,0.01]
[1763950368296,0.09927,88029.0,88010.0,0.01]
[1763950368416,0.46565706,88030.0,88010.0,0.01]
[1763950368417,0.00011772,88030.0,88010.0,0.01]
[1763950368612,0.00011772,88030.0,88005.0,0.01136299]
[1763950368613,0.46565706,88030.0,88019.0,0.01]
[1763950369646,0.00011772,88030.0,88019.0,0.01]
[1763950369849,0.00011772,88030.0,88029.0,0.03931]
[1763950371141,0.00011772,88030.0,88029.0,0.20994]
[1763950371311,0.00011772,88030.0,88029.0,0.11337]
[1763950371513,0.00011772,88030.0,88029.0,0.04931]
[1763950371737,0.00011772,88030.0,88029.0,0.11337]
[1763950372090,0.00011772,88030.0,88029.0,0.04931]
[1763950372295,0.25836794,88040.0,88029.0,0.11337]
[1763950372499,0.04706,88046.0,88030.0,0.02943098]
[1763950372700,0.00095971,88031.0,88030.0,0.02943098]
[1763950372907,0.00095971,88031.0,88029.0,0.00039281]
[1763950373150,0.09927,88039.0,88029.0,0.00039281]
[1763950375065,0.04719,88030.0,88029.0,0.00039281]
[1763950375538,0.14594,88030.0,88029.0,0.00039281]
[1763950377366,0.323,88039.0,88029.0,0.00039281]
[1763950377871,0.04719,88030.0,88029.0,0.00039281]
[1763950378300,0.14594,88030.0,88029.0,0.00039281]
[1763950378458,0.14686876,88030.0,88029.0,0.00039281]
[1763950380185,2.69706403,88030.0,88029.0,0.00039281]
[1763950380659,2.46986876,88030.0,88029.0,0.00039281]
[1763950383070,2.28063166,88030.0,88029.0,0.00039281]
[1763950383292,2.28161166,88030.0,88029.0,0.00039281]
[1763950384189,0.28161166,88030.0,88029.0,0.00039281]
[1763950384363,0.46553934,88039.0,88029.0,0.00039281]
[1763950384571,0.04706,88046.0,88030.0,0.0478]
[1763950384921,0.46553934,88040.0,88029.0,0.01039281]
[1763950385155,0.46553934,88040.0,88029.0,0.00039281]
[1763950385156,0.00024761,88038.0,88029.0,0.00039281]
[1763950385399,0.00098,88030.0,88029.0,0.00039281]
[1763950385809,2.55117527,88030.0,88029.0,0.00039281]
[1763950386013,0.00024761,88038.0,88029.0,0.06192281]
[1763950386246,0.00024761,88038.0,88029.0,0.00039281]
[1763950388102,0.04757,88037.0,88029.0,0.00039281]
[1763950389783,0.00024761,88038.0,88029.0,0.00039281]
[1763950390174,0.00024761,88038.0,88029.0,0.01039281]
[1763950393007,0.00024761,88038.0,88029.0,0.00039281]
[1763950393786,0.00024761,88038.0,88030.0,0.01]
[1763950393987,0.00024761,88038.0,88029.0,0.00039281]
[1763950394545,0.04757,88037.0,88029.0,0.00039281]
[1763950394946,2.0,88036.0,88029.0,0.00039281]
[1763950395312,2.0,88034.0,88029.0,0.00039281]
[1763950395724,0.04757,88033.0,88029.0,0.00039281]
[1763950396137,0.0113595,88032.0,88029.0,0.00039281]
[1763950396344,0.323,88030.0,88029.0,0.00039281]
[1763950396544,0.48906974,88030.0,88029.0,0.00039281]
[1763950396758,0.39186435,88030.0,88029.0,0.00039281]
[1763950397173,0.38686435,88030.0,88029.0,0.00039281]
[1763950398219,0.06886435,88030.0,88029.0,0.00039281]
[1763950398457,0.00024761,88038.0,88029.0,0.00039281]
[1763950398644,0.02128752,88037.0,88029.0,0.00039281]
[1763950398820,0.02128752,88036.0,88029.0,0.00039281]
[1763950399037,0.00024761,88038.0,88029.0,0.00039281]
[1763950399242,0.06885756,88037.0,88029.0,0.00039281]
[1763950399439,0.32324761,88038.0,88029.0,0.00039281]
[1763950399641,0.00024761,88038.0,88029.0,0.00039281]
[1763950401254,0.00048,88030.0,88029.0,0.00039281]
[1763950401669,0.04758,88030.0,88029.0,0.00039281]
[1763950401878,0.06886743,88030.0,88029.0,0.00039281]
[1763950402655,0.02176743,88030.0,88029.0,0.00039281]
[1763950403073,0.39186743,88030.0,88029.0,0.00039281]
[1763950404243,0.06886743,88030.0,88029.0,0.00039281]
[1763950404457,0.39186743,88030.0,88029.0,0.00039281]
[1763950407506,2.4949549,88030.0,88029.0,0.00039281]
[1763950407709,2.51662427,88030.0,88029.0,0.00039281]
[1763950407878,2.4949549,88030.0,88029.0,0.00039281]
[1763950411438,0.01136208,88012.0,87989.0,0.03929]
[1763950411639,0.46553934,88010.0,87989.0,0.03940772]
[1763950412026,0.0495,88009.0,87989.0,0.03940772]
[1763950412232,0.46553934,88010.0,87990.0,0.02272985]
[1763950412458,0.46553934,88010.0,87990.0,0.12663985]
[1763950413195,0.47690168,88010.0,87990.0,0.01]
[1763950413396,0.01136247,88009.0,87990.0,0.01]
[1763950413600,0.46553934,88010.0,87990.0,0.01]
[1763950414166,0.0495,88009.0,87989.0,0.03940772]
[1763950414363,0.01136299,88005.0,87989.0,0.03940772]
[1763950414584,0.01136286,88006.0,87989.0,0.03940772]
[1763950414831,0.0113626,88008.0,87989.0,0.03940772]
[1763950415031,0.46553934,88010.0,87992.0,0.01]
[1763950415653,0.04706,88011.0,87992.0,0.01]
[1763950415847,0.46553934,88010.0,87992.0,0.01]
[1763950416387,0.0495,88009.0,87992.0,0.01]
[1763950417621,0.46553934,88010.0,87992.0,0.01]
[1763950418039,0.46553934,88002.0,87989.0,0.04940772]
[1763950418436,0.04401,88001.0,87989.0,0.04940772]
[1763950418997,0.46553934,88010.0,87990.0,0.12528985]
[1763950419306,0.46553934,88010.0,87992.0,0.01]
[1763950419823,0.46553934,88010.0,87992.0,0.03272933]
[1763950420027,0.0113626,88008.0,87992.0,0.01]
[1763950420236,0.46553934,88002.0,87990.0,0.01]
[1763950420405,0.46553934,88002.0,87989.0,0.03940772]
[1763950420624,0.04401,88001.0,87989.0,0.03940772]
[1763950421035,0.04401,88001.0,87989.0,0.00011772]
[1763950421036,0.0495,87990.0,87989.0,0.00011772]
[1763950421255,2.37299,87990.0,87989.0,0.00011772]
[1763950422244,2.323,87990.0,87989.0,0.00011772]
[1763950422423,0.32349,87990.0,87989.0,0.00011772]
[1763950422800,0.323,87990.0,87989.0,0.00011772]
[1763950423270,2.0,87996.0,87989.0,0.00011772]
[1763950423663,0.0495,87997.0,87989.0,0.00011772]
[1763950425444,0.04401,88001.0,87989.0,0.00011772]
[1763950425591,0.323,87999.0,87989.0,0.00011772]
[1763950426395,0.0495,87998.0,87989.0,0.00011772]
[1763950427040,0.00049,87990.0,87989.0,0.00011772]
[1763950427443,0.0495,87990.0,87989.0,0.00011772]
[1763950428198,0.3725,87990.0,87989.0,0.00011772]
[1763950428676,0.32349,87990.0,87989.0,0.00011772]
[1763950428915,0.32398,87990.0,87989.0,0.00011772]
[1763950429085,0.00098,87990.0,87989.0,0.00011772]
[1763950429552,0.323,87993.0,87989.0,0.00011772]
[1763950429761,0.00098,87990.0,87989.0,0.00011772]
[1763950429890,2.0,87999.0,87989.0,0.00011772]
[1763950430094,0.323,87994.0,87989.0,0.00011772]
[1763950430318,0.00049,87990.0,87989.0,0.00011772]
[1763950430682,0.0495,87990.0,87989.0,0.00011772]
[1763950430996,2.27679855,87990.0,87989.0,0.00011772]
[1763950431600,2.59979855,87990.0,87989.0,0.00011772]
[1763950432039,2.3725,87990.0,87989.0,0.00011772]
[1763950432789,2.15237396,87990.0,87989.0,0.00011772]
[1763950432940,2.15286396,87990.0,87989.0,0.00011772]
[1763950434818,2.38016251,87990.0,87989.0,0.00011772]
[1763950435317,2.38016251,87990.0,87940.0,0.0004]
[1763950435318,0.0113666,87977.0,87942.0,0.09649]
[1763950435572,0.68379525,87970.0,87948.0,0.14430782]
[1763950436210,0.26999748,87979.0,87948.0,0.14430782]
[1763950436211,0.04267,87989.0,87969.0,0.11326]
[1763950436410,2.0,88002.0,87979.0,0.05808]
[1763950436616,2.0,88002.0,87983.0,0.01]
[1763950436820,0.04401,88008.0,88001.0,0.04808]
[1763950437225,0.04401,88013.0,88001.0,0.04808]
[1763950438417,2.0,88034.0,88012.0,0.06518]
[1763950438627,2.0,88033.0,88012.0,0.06518]
[1763950438828,0.323,88030.0,88012.0,0.06518]
[1763950439007,0.323,88026.0,88012.0,0.06518]
[1763950439211,2.0,88025.0,88012.0,0.06518]
[1763950439818,0.04989232,88034.0,88002.0,0.09649]
[1763950439819,0.323,88032.0,88002.0,0.09649]
[1763950440003,0.323,88028.0,88004.0,0.01]
[1763950440213,0.323,88026.0,88004.0,0.01]
[1763950440446,0.0495,88025.0,88001.0,0.04808]
[1763950440787,0.04401,88002.0,87988.0,0.09649]
[1763950440977,0.04401,88002.0,87986.0,0.01]
[1763950441177,0.04401,88002.0,87979.0,0.05536]
[1763950441381,0.68379525,88000.0,87979.0,0.04808]
[1763950441611,0.323,87999.0,87979.0,0.04808]
[1763950441957,0.0495,87998.0,87979.0,0.04819782]
[1763950442800,0.323,87999.0,87979.0,0.04819782]
[1763950442961,0.0113635,88001.0,87979.0,0.04819782]
[1763950443163,0.0495,88000.0,87979.0,0.04819782]
[1763950443997,0.01136389,87998.0,87979.0,0.04819782]
[1763950444178,0.33436376,87999.0,87979.0,0.00011782]
[1763950444377,0.68379525,87990.0,87979.0,0.00011782]
[1763950444573,0.04267,87980.0,87979.0,0.00011782]
[1763950444969,0.64249439,87980.0,87979.0,0.00011782]
[1763950445281,2.41517,87980.0,87979.0,0.00011782]
[1763950445667,2.36616,87980.0,87979.0,0.00011782]
[1763950445938,0.36567,87980.0,87979.0,0.00011782]
[1763950446130,0.41517,87980.0,87979.0,0.00011782]
[1763950446540,0.41566,87980.0,87979.0,0.00011782]
[1763950446742,0.36567,87980.0,87979.0,0.00011782]
[1763950447530,0.04267,87980.0,87979.0,0.00011782]
[1763950447748,0.323,87989.0,87979.0,0.00011782]
[1763950447952,0.00049,87980.0,87979.0,0.00011782]
[1763950448436,0.0495,87980.0,87979.0,0.00011782]
[1763950448969,0.323,87981.0,87979.0,0.06180782]
[1763950449222,0.10308747,88009.0,87979.0,0.06180782]
[1763950449223,2.0,88001.0,87980.0,0.15593]
[1763950449428,2.0,88001.0,87979.0,0.00011782]
[1763950449429,0.323,87997.0,87979.0,0.00011782]
[1763950449640,0.323,87995.0,87979.0,0.00011782]
[1763950450446,0.01136441,87994.0,87979.0,0.00011782]
[1763950450685,0.0495,87995.0,87979.0,0.00011782]
[1763950450821,0.323,87998.0,87979.0,0.00011782]
[1763950451025,0.323,87998.0,87980.0,0.09424]
[1763950451229,0.323,87998.0,87980.0,0.10424]
[1763950451431,0.323,87998.0,87987.0,0.01]
[1763950451632,0.323,88000.0,87987.0,0.01]
[1763950451861,0.323,88000.0,87980.0,0.09424]
[1763950451862,0.323,87998.0,87988.0,0.04526]
[1763950452061,0.323,87998.0,87979.0,0.00011782]
[1763950452062,0.33436389,87998.0,87979.0,0.00011782]
[1763950452280,0.00049,87989.0,87979.0,0.00011782]
[1763950454831,0.323,87998.0,87988.0,0.06169]
[1763950455082,0.323,87998.0,87979.0,0.00011782]
[1763950455083,2.0,88032.0,88000.0,0.01136363]
[1763950455256,0.01783116,88019.0,88018.0,0.01]